bitfinex/quotes_ETHUSD_20251015
["timestamp","ask_amount","ask_price","bid_price","bid_amount"]
[1760558707370,2.50253138,3996.0,3995.1,0.1699]
[1760558707675,29.408469,3995.5,3995.1,0.1699]
[1760558707866,29.408469,3995.7,3995.1,0.1699]
[1760558708064,29.408469,3996.1,3995.1,0.1699]
[1760558708380,29.408469,3996.0,3995.1,0.1699]
[1760558708540,29.408469,3995.9,3995.1,0.1699]
[1760558708744,10.07996768,3996.0,3994.4,0.1699]
[1760558708944,2.50312891,3995.0,3993.9,0.1699]
[1760558709196,2.50312891,3995.0,3993.3,0.002]
[1760558709197,29.408469,3994.4,3993.3,0.002]
[1760558709682,29.408469,3994.0,3993.3,0.002]
[1760558709852,29.408469,3994.1,3993.3,0.002]
[1760558710044,0.235,3993.9,3993.3,0.002]
[1760558710247,31.91235793,3993.8,3993.3,0.002]
[1760558710442,29.408469,3993.7,3993.3,0.002]
[1760558711082,29.408469,3993.4,3993.3,0.002]
[1760558712456,10.3978,3993.4,3993.3,2.50619452]
[1760558713196,1.728,3994.3,3993.3,0.002]
[1760558713348,0.1248,3993.7,3993.4,2.50413181]
[1760558713677,0.1248,3993.7,3993.6,2.50400641]
[1760558713875,0.1248,3993.7,3993.5,2.50405597]
[1760558714081,0.1248,3993.7,3993.3,2.50617531]
[1760558714375,0.1248,3993.7,3993.3,0.002]
[1760558714679,1.728,3994.3,3993.9,2.5038086]
[1760558714979,0.1248,3994.0,3993.9,2.50381832]
[1760558715279,0.4327,3994.9,3994.2,2.50357274]
[1760558715280,0.1248,3994.3,3994.2,2.50357274]
[1760558715779,0.1248,3994.3,3994.2,2.50363026]
[1760558715952,0.1248,3994.3,3993.8,2.5038225]
[1760558716154,0.1248,3994.3,3994.2,2.50363026]
[1760558716370,0.1248,3994.3,3993.6,0.1248]
[1760558716547,0.1248,3994.3,3994.2,2.50363026]
[1760558717176,0.1248,3994.3,3994.0,2.50373999]
[1760558717343,0.1248,3994.3,3993.9,2.50381717]
[1760558717544,29.408469,3994.2,3993.8,2.50386692]
[1760558717779,29.408469,3994.2,3993.6,0.1248]
[1760558718149,29.408469,3994.2,3993.9,2.50381122]
[1760558718479,0.4327,3994.1,3993.5,2.50406056]
[1760558718650,0.1248,3994.0,3993.5,2.50406056]
[1760558718850,0.1248,3994.0,3993.3,0.1268]
[1760558719050,0.1248,3994.0,3993.7,2.5039403]
[1760558719243,0.5575,3994.0,3993.7,2.5039403]
[1760558719461,0.5575,3994.0,3993.6,2.50399895]
[1760558719858,0.5575,3994.0,3993.5,2.50406721]
[1760558720393,10.0,3994.5,3993.3,2.6309399]
[1760558720394,2.50389068,3993.8,3993.3,0.002]
[1760558720593,29.408469,3993.4,3993.3,0.002]
[1760558721095,34.55069107,3993.4,3993.3,0.002]
[1760558722510,32.04655926,3993.4,3993.3,0.002]
[1760558723377,34.55069107,3993.4,3993.3,0.002]
[1760558724778,32.04655926,3993.4,3993.3,0.002]
[1760558725079,34.55069107,3993.4,3993.3,0.002]
[1760558729196,34.07619107,3993.4,3993.3,0.002]
[1760558729416,34.55069107,3993.4,3993.3,0.002]
[1760558730393,34.91777621,3993.4,3993.3,0.002]
[1760558732198,34.11510081,3993.4,3993.3,0.002]
[1760558732698,33.64060081,3993.4,3993.3,0.002]
[1760558733698,34.11510081,3993.4,3993.3,0.002]
[1760558736116,34.52985773,3993.4,3993.3,0.002]
[1760558736319,44.89694287,3993.4,3993.3,0.002]
[1760558736497,34.89694287,3993.4,3993.3,0.002]
[1760558736702,35.53054287,3993.4,3993.3,0.002]
[1760558737245,6.12207387,3993.4,3993.3,0.002]
[1760558737433,2.50438266,3993.0,3992.9,0.002]
[1760558737630,35.05629372,3993.0,3992.9,0.002]
[1760558737935,44.05704644,3992.6,3992.5,0.002]
[1760558738100,44.8388885,3992.6,3992.5,0.002]
[1760558738303,45.3133885,3992.6,3992.5,0.002]
[1760558739631,45.3133885,3992.6,3991.3,0.002]
[1760558739632,29.408469,3991.6,3991.3,0.002]
[1760558739938,29.408469,3991.5,3991.3,0.002]
[1760558741042,29.408469,3991.6,3991.3,0.002]
[1760558741556,1.85144684,3991.7,3991.3,0.002]
[1760558741557,29.408469,3991.4,3991.3,0.002]
[1760558742222,29.82322592,3991.4,3991.3,0.002]
[1760558743751,29.408469,3991.5,3991.3,0.002]
[1760558744769,29.408469,3991.6,3991.3,0.002]
[1760558745829,25.977,3991.8,3991.4,0.1699]
[1760558746026,0.1248,3991.7,3991.6,2.50526104]
[1760558746355,0.2252,3992.7,3991.6,2.50526104]
[1760558746356,0.1248,3991.9,3991.8,2.50508346]
[1760558746551,29.533269,3991.9,3991.8,2.67498346]
[1760558747152,29.533269,3991.9,3991.8,2.50508346]
[1760558747553,29.533269,3991.9,3991.4,0.1699]
[1760558747554,29.408469,3991.8,3991.4,0.1699]
[1760558747730,29.408469,3991.8,3991.7,2.50519828]
[1760558747930,29.408469,3991.8,3991.7,2.67509828]
[1760558748163,29.408469,3991.8,3991.7,0.1699]
[1760558748365,29.408469,3991.8,3991.7,2.67509828]
[1760558748574,29.408469,3991.8,3991.7,2.50519828]
[1760558749473,29.408469,3991.8,3991.6,2.50524926]
[1760558749670,29.408469,3991.8,3991.3,0.1268]
[1760558749973,20.701,3991.8,3991.4,0.1699]
[1760558750158,15.567,3991.8,3991.6,2.50526104]
[1760558750359,15.567,3991.8,3991.3,0.1268]
[1760558750563,15.567,3991.8,3991.6,2.50525701]
[1760558750870,29.408469,3991.8,3991.6,2.50724651]
[1760558751079,29.408469,3991.8,3991.6,0.002]
[1760558753166,22.319,3991.8,3991.6,0.002]
[1760558753672,22.319,3991.8,3991.7,2.50519828]
[1760558753972,9.826,3991.8,3991.7,2.50515349]
[1760558754170,0.1248,3991.9,3991.7,2.50515349]
[1760558754380,0.1248,3991.9,3991.7,0.1699]
[1760558754543,9.0898,3991.9,3991.8,2.50513552]
[1760558754739,9.0898,3991.9,3991.8,2.67503552]
[1760558754740,0.1248,3991.9,3991.8,2.67503552]
[1760558754942,0.1248,3991.9,3991.7,2.50518461]
[1760558755370,0.1248,3991.9,3991.6,0.1719]
[1760558755571,29.408469,3991.8,3991.6,0.002]
[1760558755797,29.408469,3991.8,3991.6,2.50724652]
[1760558755998,29.408469,3991.8,3991.6,0.002]
[1760558757096,29.408469,3991.9,3991.6,0.002]
[1760558757268,29.533269,3991.7,3991.6,0.002]
[1760558760600,9.2148,3991.7,3991.6,0.002]
[1760558760772,29.533269,3991.7,3991.6,0.002]
[1760558761303,29.968769,3991.7,3991.6,0.002]
[1760558761476,34.20196728,3991.7,3991.6,0.002]
[1760558761678,5.47967368,3991.7,3991.6,0.002]
[1760558761876,44.88814268,3991.7,3991.6,0.002]
[1760558762205,34.88814268,3991.7,3991.6,0.002]
[1760558762601,34.56905242,3991.7,3991.6,0.002]
[1760558762770,5.16058342,3991.7,3991.6,0.002]
[1760558762969,34.56905242,3991.7,3991.6,0.002]
[1760558766612,34.88814268,3991.7,3991.6,0.002]
[1760558766817,34.76334268,3991.7,3991.6,0.002]
[1760558767872,44.05779945,3991.4,3991.3,0.002]
[1760558768277,45.17947485,3991.4,3991.3,0.002]
[1760558769689,31.50355414,3991.4,3991.3,0.002]
[1760558769993,34.44444072,3991.4,3991.3,0.002]
[1760558771820,34.00894072,3991.4,3991.3,0.002]
[1760558772019,31.50355414,3991.4,3991.3,0.002]
[1760558772206,29.77555414,3992.4,3991.3,0.1719]
[1760558772406,0.32009026,3992.9,3992.0,2.50499974]
[1760558772407,29.408469,3992.2,3992.0,2.50499974]
[1760558772606,29.408469,3992.4,3992.1,0.1699]
[1760558772813,29.408469,3992.4,3991.3,2.50741331]
[1760558772814,1.728,3992.3,3991.9,2.50506734]
[1760558772985,19.154,3992.4,3992.2,2.50488452]
[1760558773188,8.474,3992.4,3992.3,2.67472178]
[1760558773731,0.001,3992.5,3992.4,2.50475904]
[1760558774094,0.001,3992.5,3992.4,2.67465904]
[1760558776821,0.001,3992.5,3992.4,2.79945904]
[1760558777391,0.001,3992.5,3992.4,0.1248]
[1760558777638,0.001,3992.5,3991.5,0.1699]
[1760558777639,28.030617,3992.4,3992.3,2.50478411]
[1760558778509,28.030617,3992.4,3991.3,0.1719]
[1760558778708,0.1248,3992.1,3991.4,0.1248]
[1760558778892,28.030617,3991.7,3991.5,2.50527488]
[1760558779098,28.030617,3991.7,3991.3,0.002]
[1760558779434,28.030617,3991.7,3991.5,2.50531478]
[1760558779733,7.785,3991.7,3991.6,2.50526104]
[1760558780091,7.785,3991.7,3991.4,2.50532646]
[1760558780296,7.785,3991.7,3991.5,2.50531165]
[1760558780496,7.785,3991.7,3991.6,2.50526104]
[1760558780736,28.030617,3991.7,3991.6,2.50526104]
[1760558781604,0.1248,3991.8,3991.7,2.50519828]
[1760558781818,28.155417,3991.8,3991.7,2.50519828]
[1760558782017,28.155417,3991.8,3991.6,2.50524495]
[1760558782229,28.246517,3991.7,3991.3,0.002]
[1760558782430,32.26400358,3991.4,3991.3,0.002]
[1760558782627,4.23338658,3991.4,3991.3,0.002]
[1760558782825,32.69900358,3991.4,3991.3,0.002]
[1760558784034,30.193617,3991.4,3991.3,0.002]
[1760558784235,32.69900358,3991.4,3991.3,0.002]
[1760558784619,30.193617,3991.4,3991.3,0.002]
[1760558784807,29.758617,3991.4,3991.3,0.002]
[1760558785210,12.35,3991.9,3991.3,0.1719]
[1760558785405,28.030617,3992.2,3991.6,0.002]
[1760558785605,28.030617,3992.4,3991.9,2.50501686]
[1760558785822,28.030617,3992.2,3992.0,2.50499508]
[1760558786154,28.030617,3992.3,3991.6,0.002]
[1760558786320,28.030617,3992.3,3992.0,2.50496622]
[1760558786520,28.030617,3992.3,3992.1,2.50489212]
[1760558786755,11.015,3992.3,3992.2,2.50488452]
[1760558787155,9.287,3992.3,3992.2,2.50488452]
[1760558787336,11.015,3992.3,3992.2,2.50488452]
[1760558787539,8.619,3992.3,3992.2,2.50488452]
[1760558788372,28.030617,3992.3,3991.6,0.002]
[1760558788528,28.030617,3992.3,3991.9,2.50501656]
[1760558788869,28.030617,3992.2,3991.9,2.50501656]
[1760558789228,28.030617,3992.2,3991.7,2.50517057]
[1760558789728,28.030617,3992.3,3992.0,2.50500841]
[1760558789957,28.030617,3992.3,3991.6,0.002]
[1760558790536,28.030617,3992.3,3992.0,2.50496562]
[1760558790737,28.030617,3992.3,3992.1,2.50491141]
[1760558791026,28.030617,3992.3,3991.7,2.50514508]
[1760558791335,28.030617,3992.3,3991.6,0.002]
[1760558791845,28.030617,3992.3,3992.0,2.50499461]
[1760558792019,21.784,3992.3,3991.6,0.002]
[1760558792218,11.339,3992.3,3992.1,2.50493408]
[1760558792758,0.001,3992.4,3992.1,2.50493408]
[1760558792953,0.001,3992.4,3992.3,2.50482178]
[1760558793283,28.031617,3992.4,3992.3,2.50482178]
[1760558793483,0.1248,3992.3,3991.6,0.1719]
[1760558793685,28.030617,3992.2,3992.1,2.50492852]
[1760558793884,28.030617,3992.2,3991.6,0.002]
[1760558794181,28.030617,3992.2,3992.0,2.50497128]
[1760558794391,28.030617,3992.2,3992.1,2.50494727]
[1760558795394,28.030617,3992.2,3991.6,0.002]
[1760558795551,28.030617,3992.2,3992.0,2.50498777]
[1760558795955,28.030617,3992.2,3992.1,2.50494727]
[1760558796283,14.469,3992.2,3992.1,2.50494727]
[1760558796691,0.1248,3992.3,3992.2,2.50488452]
[1760558796898,28.155417,3992.3,3992.2,2.50488452]
[1760558797101,28.155417,3992.3,3992.1,2.50492939]
[1760558797281,28.030617,3992.2,3992.1,2.50492939]
[1760558797762,0.1248,3992.3,3992.2,2.50488452]
[1760558798094,23.1138,3992.3,3991.6,0.002]
[1760558798286,28.030617,3992.2,3991.7,2.50519828]
[1760558798588,28.030617,3992.2,3992.0,2.50500368]
[1760558798989,28.030617,3992.2,3991.9,2.50505283]
[1760558799189,28.030617,3992.2,3991.6,2.50720618]
[1760558799190,28.030617,3992.0,3991.8,2.50509417]
[1760558799511,38.681517,3991.9,3991.8,2.50509417]
[1760558799789,28.681517,3991.9,3991.8,2.50509417]
[1760558800196,28.030617,3991.9,3991.8,2.50509417]
[1760558800357,28.030617,3992.0,3991.9,2.50507277]
[1760558800806,28.155417,3992.1,3992.0,2.50501002]
[1760558801217,28.155417,3992.1,3991.9,2.50504887]
[1760558801554,28.030617,3992.0,3991.8,2.50512369]
[1760558801820,28.030617,3991.9,3991.6,2.5071986]
[1760558802013,28.030617,3991.9,3991.7,2.50517918]
[1760558802207,28.030617,3991.9,3991.6,0.002]
[1760558802424,0.6509,3991.8,3991.6,0.002]
[1760558802992,0.2159,3991.8,3991.6,0.002]
[1760558804118,0.2159,3991.8,3991.6,2.50724938]
[1760558804304,23.089,3991.9,3991.8,2.50513552]
[1760558804553,21.361,3991.9,3991.8,2.50513552]
[1760558804689,1.728,3992.2,3991.8,2.50513552]
[1760558804886,28.030617,3991.9,3991.8,2.50513552]
[1760558805512,21.33,3991.9,3991.8,2.50513552]
[1760558806431,21.33,3991.9,3991.6,0.002]
[1760558806843,21.765,3991.9,3991.6,0.002]
[1760558807057,28.030617,3991.8,3991.6,0.002]
[1760558807508,0.6509,3991.9,3991.6,0.002]
[1760558807509,38.465617,3991.7,3991.6,0.002]
[1760558807833,28.465617,3991.7,3991.6,0.002]
[1760558808612,32.69881528,3991.7,3991.6,0.002]
[1760558808834,33.35439392,3991.7,3991.6,0.002]
[1760558809002,29.758617,3991.7,3991.6,0.002]
[1760558809335,32.69881528,3991.7,3991.6,0.002]
[1760558809736,33.03530366,3991.7,3991.6,0.002]
[1760558810941,33.35439392,3991.7,3991.6,0.002]
[1760558813525,33.03530366,3991.7,3991.6,0.002]
[1760558813838,0.1248,3991.1,3990.9,2.50569234]
[1760558814030,0.1248,3991.3,3990.9,2.50569234]
[1760558814229,1.728,3991.4,3990.6,0.1699]
[1760558814230,11.605,3991.0,3990.6,0.1699]
[1760558814429,11.605,3991.0,3990.1,0.1719]
[1760558814632,0.1248,3990.7,3990.3,2.50606737]
[1760558814822,28.030617,3990.6,3990.3,2.50603746]
[1760558815023,28.030617,3990.6,3990.4,2.50601423]
[1760558816220,28.030617,3990.6,3990.3,2.50605402]
[1760558816425,28.030617,3990.6,3990.4,2.50600958]
[1760558818210,28.030617,3990.6,3990.1,0.002]
[1760558818621,25.06,3990.6,3990.1,0.002]
[1760558818814,1.728,3991.5,3990.5,0.1719]
[1760558819014,0.1248,3991.0,3990.6,2.50588883]
[1760558819240,28.030617,3990.9,3990.7,2.50576756]
[1760558819561,28.030617,3990.9,3990.5,2.50793261]
[1760558819757,28.030617,3990.9,3990.6,2.50588535]
[1760558820222,26.363,3990.9,3990.5,0.002]
[1760558820424,26.363,3990.9,3990.5,2.50791046]
[1760558821653,26.363,3990.9,3990.6,2.50588883]
[1760558821855,6.289,3990.9,3990.7,2.50579108]
[1760558822035,6.289,3990.9,3990.6,2.50588153]
[1760558822231,6.289,3990.9,3990.7,2.50579327]
[1760558822758,0.1248,3991.0,3990.7,0.50137429]
[1760558822926,1.8528,3991.7,3991.5,2.50528492]
[1760558823277,30.53605846,3991.4,3990.6,2.50588847]
[1760558823427,30.53623207,3991.1,3990.5,0.002]
[1760558823758,28.030617,3990.9,3990.5,0.002]
[1760558824148,0.446,3990.8,3990.5,0.002]
[1760558824443,40.53650583,3990.6,3990.5,0.002]
[1760558824638,31.19208447,3990.6,3990.5,0.002]
[1760558824842,31.63808447,3990.6,3990.5,0.002]
[1760558825524,33.36608447,3990.6,3990.5,0.002]
[1760558830899,33.99968447,3990.6,3990.5,0.002]
[1760558832333,33.36608447,3990.6,3990.5,0.002]
[1760558832574,32.71050583,3990.6,3990.5,0.002]
[1760558833530,32.26450583,3990.6,3990.5,0.002]
[1760558834487,32.71050583,3990.6,3990.5,0.002]
[1760558835044,33.04699421,3990.6,3990.5,0.002]
[1760558835377,33.36608447,3990.6,3990.5,0.002]
[1760558841795,32.92008447,3990.6,3990.5,0.002]
[1760558842098,33.36138447,3990.6,3990.5,0.002]
[1760558843012,32.92008447,3990.6,3990.5,0.002]
[1760558846580,32.60099421,3990.6,3990.5,0.002]
[1760558848307,33.36138447,3990.6,3990.5,0.002]
[1760558848512,32.92008447,3990.6,3990.5,0.002]
[1760558850424,33.36138447,3990.6,3990.5,0.002]
[1760558852836,32.92008447,3990.6,3990.5,0.002]
[1760558855731,30.41419564,3990.6,3990.5,0.002]
[1760558855938,18.667,3990.6,3990.5,0.1719]
[1760558856135,18.667,3990.6,3990.5,0.002]
[1760558856136,19.44488883,3990.6,3990.5,0.002]
[1760558856354,16.939,3990.6,3990.5,0.002]
[1760558856560,18.667,3990.6,3990.5,0.1719]
[1760558856929,29.758617,3990.6,3990.5,0.002]
[1760558857575,32.26450583,3990.6,3990.5,0.002]
[1760558858276,29.758617,3990.6,3990.5,0.002]
[1760558861069,1.728,3990.6,3990.5,0.1719]
[1760558861331,0.001,3991.1,3990.6,2.50588883]
[1760558861332,0.1248,3991.0,3990.6,2.50588883]
[1760558861542,0.001,3991.1,3991.0,2.50563768]
[1760558861963,0.001,3991.1,3991.0,2.67553768]
[1760558864577,0.001,3991.1,3991.0,2.70059405]
[1760558864738,0.001,3991.1,3991.0,3.43393768]
[1760558868575,0.001,3991.1,3991.0,7.31393768]
[1760558868742,0.001,3991.1,3991.0,8.66591949]
[1760558873750,0.001,3991.1,3991.0,12.0983206]
[1760558881256,0.001,3991.1,3991.0,11.9735206]
[1760558881562,0.001,3991.5,3991.0,11.9735206]
[1760558881563,0.001,3991.5,3991.4,3.13898658]
[1760558881767,0.001,3991.5,3991.4,7.16784044]
[1760558881975,0.001,3991.5,3991.4,9.28625195]
[1760558882175,0.001,3991.5,3991.4,9.11635195]
[1760558884478,0.001,3991.5,3991.4,9.28625195]
[1760558884681,0.001,3991.5,3991.4,9.11635195]
[1760558884864,0.4446,3991.5,3991.4,6.50918658]
[1760558885276,0.4446,3991.5,3991.4,4.0038]
[1760558885461,0.4446,3991.5,3991.4,3.879]
[1760558886058,0.4446,3991.5,3991.4,6.38438658]
[1760558887893,0.4446,3991.5,3991.4,3.879]
[1760558888492,0.4446,3991.5,3991.4,6.38438658]
[1760558889624,0.4446,3991.5,3991.4,3.879]
[1760558890227,28.475217,3991.5,3991.4,3.879]
[1760558890395,28.600017,3991.5,3991.4,3.879]
[1760558890925,0.5694,3991.5,3991.4,3.879]
[1760558891227,0.5694,3991.5,3991.4,6.38438658]
[1760558891904,0.5694,3991.5,3991.4,3.879]
[1760558892112,0.5694,3991.5,3991.4,6.38438658]
[1760558893132,0.1258,3991.5,3991.4,6.38438658]
[1760558893317,0.001,3991.5,3991.4,7.27337287]
[1760558893693,0.001,3991.5,3991.4,7.90697287]
[1760558894200,0.001,3991.5,3991.3,3.879]
[1760558894201,28.030617,3991.4,3991.3,3.879]
[1760558894403,28.474217,3991.4,3991.3,3.879]
[1760558894913,0.4436,3991.4,3991.1,3.879]
[1760558895240,0.4436,3991.3,3991.1,3.879]
[1760558895530,0.4436,3991.3,3991.1,6.38457]
[1760558895712,0.4436,3991.2,3991.1,3.879]
[1760558896045,0.4436,3991.2,3990.6,0.002]
[1760558896046,28.030617,3991.0,3990.7,3.879]
[1760558896203,31.46301811,3990.8,3990.7,3.879]
[1760558896398,31.90661811,3990.8,3990.7,3.879]
[1760558897059,28.030617,3991.2,3990.7,3.879]
[1760558897215,1.9472,3991.9,3991.2,2.50546277]
[1760558897431,1.9472,3991.9,3990.8,3.879]
[1760558897432,1.728,3991.6,3990.8,3.879]
[1760558897634,3.43240111,3991.3,3991.1,2.50556788]
[1760558897938,0.4436,3991.2,3991.1,2.50556788]
[1760558900022,0.4436,3991.2,3990.7,3.879]
[1760558900227,0.4436,3991.1,3991.0,2.50563768]
[1760558900949,0.001,3991.5,3990.9,3.879]
[1760558901153,0.4675,3991.5,3991.4,2.50538658]
[1760558901452,0.4675,3991.5,3990.9,3.879]
[1760558901657,31.46301811,3991.4,3990.9,3.879]
[1760558901818,3.43240111,3991.1,3990.9,3.879]
[1760558902018,28.497117,3991.0,3990.9,3.879]
[1760558903050,28.497117,3991.0,3990.6,0.002]
[1760558903051,28.030617,3990.9,3990.6,0.002]
[1760558903452,0.4665,3990.8,3990.6,0.002]
[1760558903856,0.4665,3990.7,3990.6,0.002]
[1760558906640,3.55720111,3990.8,3990.6,0.002]
[1760558906641,0.1248,3990.8,3990.6,0.002]
[1760558906960,0.1248,3990.8,3990.7,2.50582604]
[1760558908360,0.1248,3990.8,3990.7,6.38482604]
[1760558908568,0.4665,3991.2,3990.8,2.50572989]
[1760558908860,0.1248,3991.3,3991.1,2.50552301]
[1760558909157,15.7638,3991.5,3991.3,2.50539693]
[1760558909345,0.4665,3991.4,3991.3,2.50539693]
[1760558910057,0.4665,3991.4,3990.9,2.63046701]
[1760558910238,0.1258,3991.5,3990.9,0.1248]
[1760558910570,0.4665,3991.4,3991.3,2.50544512]
[1760558911539,5.4268,3991.5,3991.4,2.50538658]
[1760558912166,5.8933,3991.5,3991.4,2.50538658]
[1760558912556,5.8933,3991.5,3991.3,2.50543389]
[1760558912876,0.4665,3991.4,3991.3,2.50543389]
[1760558913681,0.001,3991.5,3991.4,2.50538658]
[1760558915475,0.001,3991.5,3991.4,2.53044044]
[1760558915678,0.001,3991.5,3990.5,0.002]
[1760558915679,28.030617,3991.3,3990.5,0.002]
[1760558915975,3.43240111,3991.1,3990.8,2.50571774]
[1760558916181,0.4665,3991.0,3990.8,2.50571774]
[1760558916387,28.030617,3990.7,3990.6,0.002]
[1760558916747,28.497117,3990.7,3990.6,0.002]
[1760558919158,18.6685,3990.7,3990.6,2.50788883]
[1760558919459,17.2035,3990.7,3990.6,2.50788883]
[1760558919664,17.2035,3990.7,3990.6,0.002]
[1760558919870,28.497117,3990.7,3990.6,0.002]
[1760558921697,28.497117,3990.7,3990.6,3.881]
[1760558922100,0.001,3991.1,3990.7,2.50582604]
[1760558922406,0.001,3991.1,3990.9,2.50568964]
[1760558922697,0.4665,3991.0,3990.7,2.50576826]
[1760558922859,0.4665,3990.9,3990.7,2.50576826]
[1760558923059,0.4665,3990.9,3990.6,2.50788304]
[1760558923260,28.030617,3990.8,3990.6,2.50788304]
[1760558923496,28.030617,3990.8,3990.6,0.002]
[1760558923660,4.1218959,3991.0,3990.6,0.002]
[1760558923661,31.00294304,3990.7,3990.6,0.002]
[1760558923861,28.497117,3990.7,3990.6,0.002]
[1760558924463,7.757,3990.7,3990.6,0.002]
[1760558924772,5.799,3991.0,3990.6,0.002]
[1760558924987,16.2655,3991.0,3990.6,0.002]
[1760558925315,28.030617,3990.8,3990.6,0.002]
[1760558925821,0.4665,3990.8,3990.6,0.002]
[1760558926016,1.728,3991.0,3990.6,0.002]
[1760558926190,28.030617,3991.0,3990.6,0.002]
[1760558926386,0.1248,3990.8,3990.6,2.50788042]
[1760558926788,0.1248,3990.8,3990.6,0.002]
[1760558926976,0.4665,3990.7,3990.6,0.002]
[1760558927174,28.497117,3990.7,3990.6,0.002]
[1760558929776,28.030617,3990.7,3990.6,0.002]
[1760558930629,28.492817,3990.7,3990.6,0.002]
[1760558931138,30.99864304,3990.7,3990.6,0.002]
[1760558932020,28.492817,3990.7,3990.6,0.002]
[1760558932316,28.030617,3990.8,3990.6,0.002]
[1760558932693,28.030617,3990.8,3990.6,2.5078782]
[1760558932877,28.030617,3990.8,3990.6,0.002]
[1760558938100,28.030617,3990.7,3990.6,0.002]
[1760558938339,30.99484304,3990.7,3990.6,0.002]
[1760558938637,28.489017,3990.7,3990.6,0.002]
[1760558942097,28.030617,3990.7,3990.6,0.002]
[1760558942828,30.99484304,3990.7,3990.6,0.002]
[1760558943222,28.489017,3990.7,3990.6,0.002]
[1760558943428,30.53644304,3990.7,3990.6,0.002]
[1760558943738,30.99484304,3990.7,3990.6,0.002]
[1760558945251,1.728,3990.9,3990.6,0.002]
[1760558945542,10.1248,3990.8,3990.6,0.002]
[1760558945707,0.1248,3990.8,3990.6,0.002]
[1760558946541,4.1218959,3990.7,3990.6,0.002]
[1760558946732,35.11673894,3990.7,3990.6,0.002]
[1760558948529,32.6109129,3990.7,3990.6,0.002]
[1760558949543,28.030617,3990.7,3990.6,0.002]
[1760558950816,0.001,3991.1,3990.9,2.50564232]
[1760558951011,0.001,3991.1,3991.0,2.67553768]
[1760558951227,0.001,3991.1,3991.0,2.70059405]
[1760558951429,0.001,3991.1,3991.0,3.56929405]
[1760558952129,0.001,3991.1,3991.0,3.54423768]
[1760558953529,0.001,3991.1,3991.0,3.30913768]
[1760558953729,0.001,3991.1,3991.0,3.9157042]
[1760558954861,0.001,3991.1,3991.0,3.94076057]
[1760558955160,0.001,3991.1,3991.0,3.9157042]
[1760558957130,0.001,3991.1,3991.0,3.7458042]
[1760558957534,0.001,3991.1,3991.0,3.9157042]
[1760558959667,0.001,3991.1,3991.0,3.94076057]
[1760558960170,0.001,3991.1,3991.0,3.9157042]
[1760558960973,0.001,3991.1,3991.0,4.0405042]
[1760558961669,0.001,3991.1,3991.0,4.06556057]
[1760558963167,0.001,3991.1,3991.0,7.94456057]
[1760558963375,0.001,3991.1,3991.0,7.9195042]
[1760558963676,0.001,3991.1,3991.0,7.7496042]
[1760558966289,0.001,3991.1,3991.0,9.4776042]
[1760558966490,0.001,3991.1,3991.0,20.1046001]
[1760558966654,0.001,3991.1,3991.0,20.20502855]
[1760558966855,0.001,3991.1,3991.0,5.57423265]
[1760558967166,0.001,3991.1,3991.0,3.7458042]
[1760558970487,0.001,3991.1,3991.0,8.0376001]
[1760558971161,0.001,3991.1,3991.0,9.7656001]
[1760558972458,0.001,3991.1,3991.0,9.86803132]
[1760558976497,0.001,3991.1,3991.0,9.99283132]
[1760558976917,0.001,3991.1,3991.0,5.70103542]
[1760558977125,0.4641,3991.1,3991.0,3.8726042]
[1760558977418,0.4641,3991.1,3991.0,2.63243768]
[1760558977705,0.001,3991.1,3991.0,3.26603768]
[1760558978129,0.001,3991.1,3991.0,3.29109405]
[1760558978482,0.001,3991.1,3991.0,3.26603768]
[1760558980388,0.001,3991.1,3991.0,3.29109405]
[1760558980592,0.001,3991.1,3991.0,3.8958562]
[1760558981214,0.001,3991.1,3991.0,9.59589573]
[1760558981458,0.001,3991.1,3991.0,9.07500793]
[1760558981752,0.001,3991.1,3991.0,9.53810793]
[1760558982524,0.001,3991.1,3991.0,15.99810793]
[1760558983038,0.001,3991.1,3991.0,9.53810793]
[1760558988356,0.001,3991.1,3991.0,19.87710793]
[1760558988956,0.001,3992.3,3992.2,3.13848452]
[1760558989122,0.4641,3992.3,3992.2,3.13848452]
[1760558989475,0.4641,3992.3,3992.2,3.72787794]
[1760558989673,1e-08,3992.3,3992.2,3.7028291]
[1760558990220,0.001,3992.5,3992.3,3.13842178]
[1760558990537,0.001,3992.5,3992.3,3.16346999]
[1760558991139,0.001,3992.5,3992.3,3.28826999]
[1760558991437,0.001,3992.5,3992.3,4.51762683]
[1760558992051,0.001,3992.5,3992.3,7.94873493]
[1760558992369,0.001,3992.9,3992.8,3.13810811]
[1760558994459,0.001,3993.4,3993.3,3.13779452]
[1760558996245,0.001,3993.4,3993.3,3.70200125]
[1760558997179,1e-08,3993.5,3993.3,3.70200125]
[1760558997375,0.2177,3993.8,3993.3,3.70200125]
[1760558997376,0.2177,3993.8,3993.7,2.50394371]
[1760558999353,3.4311081,3995.3,3994.1,2.50369294]
[1760558999547,1.728,3994.9,3994.1,2.50369294]
[1760558999778,3.4311081,3994.7,3994.1,2.50369294]
[1760558999960,3.4311081,3994.4,3994.1,2.50369294]
[1760559000477,1.728,3994.9,3994.1,2.50369294]
[1760559000478,3.4311081,3994.7,3994.1,2.50369294]
[1760559000660,0.2243,3995.0,3994.1,2.50369294]
[1760559000860,0.2243,3995.0,3994.1,3.16232986]
[1760559001059,0.2243,3995.0,3994.1,3.13729294]